bitfinex/quotes_ETHUSD_20260203
["timestamp","ask_amount","ask_price","bid_price","bid_amount"]
[1770096320950,0.91183201,2330.4,2329.7,0.001]
[1770096321176,13.24711284,2330.3,2329.7,0.001]
[1770096321355,0.91170878,2330.2,2329.7,0.001]
[1770096321551,2.23642006,2330.1,2329.4,0.001]
[1770096321874,0.91170878,2330.0,2329.4,0.001]
[1770096322179,1.32471128,2330.1,2329.4,12.99183498]
[1770096322383,1.07286966,2330.2,2329.4,12.99183498]
[1770096322563,0.91162238,2330.1,2329.8,0.001]
[1770096322763,1.07286966,2330.2,2329.8,0.001]
[1770096322977,0.91172459,2330.1,2329.8,0.001]
[1770096323176,1.07286966,2330.2,2329.8,0.001]
[1770096323483,1.44826269,2330.1,2329.8,0.001]
[1770096323682,1.07285688,2330.3,2329.8,0.001]
[1770096323986,0.91185134,2330.2,2329.8,0.001]
[1770096324186,0.91185134,2330.1,2329.8,0.001]
[1770096324386,1.07285688,2330.3,2329.8,0.001]
[1770096324683,0.91193712,2330.2,2329.8,0.001]
[1770096324982,0.91193712,2330.1,2329.8,0.001]
[1770096325178,4.29113405,2330.4,2329.8,0.001]
[1770096325179,1.07383117,2330.5,2329.8,0.001]
[1770096325383,2.83351709,2330.4,2329.8,0.001]
[1770096325575,0.91203132,2330.3,2329.8,0.001]
[1770096328252,1.98486476,2330.3,2329.8,0.001]
[1770096328458,0.91203132,2330.2,2329.8,0.001]
[1770096329555,0.91203132,2330.2,2329.9,12.99083498]
[1770096329760,1.07278364,2330.4,2329.8,0.001]
[1770096329970,0.91206203,2330.3,2329.8,0.001]
[1770096330168,0.91206203,2330.2,2329.8,0.001]
[1770096330362,0.0011,2330.5,2329.8,12.99183498]
[1770096330561,0.91212358,2330.4,2329.8,12.99183498]
[1770096330798,0.91212358,2330.3,2329.8,12.99183498]
[1770096330993,1.07383966,2330.5,2329.8,12.99183498]
[1770096331162,0.91193956,2330.4,2329.8,12.99183498]
[1770096331485,0.91193956,2330.3,2329.8,12.99183498]
[1770096331690,0.0011,2330.5,2329.8,12.99183498]
[1770096331879,0.91188768,2330.4,2329.8,12.99183498]
[1770096332191,0.91188768,2330.3,2329.8,12.99183498]
[1770096332491,0.91188768,2330.2,2329.8,12.99183498]
[1770096332673,0.0011,2330.5,2329.8,12.99183498]
[1770096332873,0.91205696,2330.4,2329.8,12.99183498]
[1770096333083,0.91205696,2330.3,2329.8,12.99183498]
[1770096333389,0.91205696,2330.2,2329.8,12.99183498]
[1770096333562,0.0011,2330.5,2329.8,12.99183498]
[1770096333760,0.91223218,2330.4,2329.8,12.99183498]
[1770096333972,0.0011,2330.5,2329.8,12.99183498]
[1770096333973,0.91223218,2330.3,2329.8,12.99183498]
[1770096334171,0.91223218,2330.2,2329.8,12.99183498]
[1770096334381,0.0011,2330.5,2329.8,12.99183498]
[1770096334591,0.91224493,2330.4,2329.8,12.99183498]
[1770096334899,0.91224493,2330.3,2329.8,12.99183498]
[1770096335102,0.91224493,2330.2,2329.8,12.99183498]
[1770096335305,0.0011,2330.5,2329.8,12.99183498]
[1770096335599,0.0011,2330.3,2329.8,12.99183498]
[1770096336099,0.91226733,2330.2,2329.8,12.99183498]
[1770096336272,0.0011,2330.3,2329.8,12.99183498]
[1770096336472,0.91227329,2330.2,2329.8,12.99183498]
[1770096336673,0.0011,2330.3,2329.8,12.99183498]
[1770096336872,0.91227265,2330.2,2329.8,12.99183498]
[1770096337097,1.07395098,2330.3,2329.8,0.001]
[1770096337398,1.44877879,2330.2,2329.8,0.001]
[1770096337599,0.53650751,2330.2,2329.8,0.001]
[1770096337800,0.0011,2330.3,2329.8,0.001]
[1770096337982,0.91226392,2330.2,2329.8,0.001]
[1770096338294,0.0011,2330.3,2329.8,0.001]
[1770096338597,0.91229347,2330.2,2329.8,0.001]
[1770096338800,0.0011,2330.3,2329.8,0.001]
[1770096339002,0.91229548,2330.2,2329.8,0.001]
[1770096339296,0.0011,2330.3,2329.8,0.001]
[1770096339492,0.9123049,2330.2,2329.8,0.001]
[1770096339796,0.0011,2330.3,2329.8,12.99183498]
[1770096340102,0.9123055,2330.2,2329.8,12.99183498]
[1770096340282,0.0011,2330.3,2329.8,12.99183498]
[1770096340485,0.91232403,2330.2,2329.8,12.99183498]
[1770096340685,0.0011,2330.3,2329.8,12.99183498]
[1770096340884,0.91232404,2330.2,2329.8,12.99183498]
[1770096341187,0.0011,2330.3,2329.8,0.001]
[1770096341379,0.91236144,2330.2,2329.8,0.001]
[1770096341604,0.0011,2330.3,2329.8,0.001]
[1770096341802,0.91238621,2330.2,2329.8,0.001]
[1770096341986,0.0011,2330.3,2329.8,0.001]
[1770096342187,0.9123795,2330.2,2329.8,0.001]
[1770096342498,0.0011,2330.3,2329.8,0.001]
[1770096342671,0.91235077,2330.2,2329.8,0.001]
[1770096342875,0.0011,2330.3,2329.8,0.001]
[1770096343076,0.91234183,2330.2,2329.7,12.98492341]
[1770096343278,0.53769216,2330.3,2329.7,12.98492341]
[1770096343472,0.91236202,2330.2,2329.7,12.98492341]
[1770096343679,0.53769216,2330.3,2329.7,12.98492341]
[1770096343877,0.91235064,2330.2,2329.7,12.98492341]
[1770096344179,0.25228373,2330.2,2329.7,12.98492341]
[1770096344907,0.0011,2330.3,2329.7,12.98492341]
[1770096345706,0.91215728,2330.2,2329.7,12.98492341]
[1770096346007,0.0011,2330.3,2329.7,12.98492341]
[1770096346308,0.91207664,2330.2,2329.7,12.98492341]
[1770096346500,0.0011,2330.3,2329.7,12.98492341]
[1770096346809,0.91219087,2330.2,2329.7,12.98492341]
[1770096346990,0.0011,2330.3,2329.7,12.98492341]
[1770096347290,0.91218893,2330.2,2329.7,12.98492341]
[1770096347489,0.0011,2330.3,2329.7,12.98492341]
[1770096347686,0.91230425,2330.2,2329.7,12.98492341]
[1770096347993,0.0011,2330.3,2329.7,14.05802016]
[1770096348187,0.91230151,2330.2,2329.8,12.99083498]
[1770096348388,0.0011,2330.3,2329.8,12.99083498]
[1770096348587,0.91346247,2330.2,2329.8,12.99083498]
[1770096348787,0.0011,2330.2,2329.8,12.99083498]
[1770096350786,0.0011,2330.2,2329.7,0.001]
[1770096350787,0.9124151,2330.1,2329.7,0.001]
[1770096351107,0.0011,2330.2,2329.7,0.001]
[1770096351409,0.91239598,2330.1,2329.7,0.001]
[1770096351607,0.0011,2330.2,2329.7,0.001]
[1770096351784,0.91238936,2330.1,2329.7,0.001]
[1770096352110,0.0011,2330.2,2329.7,0.001]
[1770096352312,0.91238912,2330.1,2329.7,0.001]
[1770096352608,0.0011,2330.2,2329.7,0.001]
[1770096352809,0.91241628,2330.1,2329.7,0.001]
[1770096353007,1.77773835,2330.2,2329.7,0.001]
[1770096353202,0.91244197,2330.1,2329.7,0.001]
[1770096353405,1.77773835,2330.2,2329.7,0.001]
[1770096353583,0.91247122,2330.1,2329.7,0.001]
[1770096353784,0.37641506,2330.1,2329.7,0.001]
[1770096354483,0.0011,2330.2,2329.7,0.001]
[1770096354682,0.91250563,2330.1,2329.7,0.001]
[1770096354983,0.0011,2330.2,2329.7,0.001]
[1770096355185,0.91252225,2330.1,2329.7,0.001]
[1770096355484,0.0011,2330.2,2329.7,0.001]
[1770096355791,0.91254387,2330.1,2329.7,0.001]
[1770096356112,0.0011,2330.2,2329.7,0.001]
[1770096356412,0.91254874,2330.1,2329.7,0.001]
[1770096356596,0.0011,2330.2,2329.7,0.001]
[1770096356805,0.9126051,2330.1,2329.7,0.001]
[1770096357003,0.0011,2330.2,2329.7,0.001]
[1770096357306,0.9125961,2330.1,2329.7,0.001]
[1770096357613,0.91265991,2330.0,2329.7,0.001]
[1770096357813,0.0011,2330.2,2329.7,0.001]
[1770096358110,0.91266775,2330.1,2329.7,0.001]
[1770096358336,0.0011,2330.2,2329.7,0.001]
[1770096358486,0.9126925,2330.1,2329.7,0.001]
[1770096358687,0.0011,2330.2,2329.7,0.001]
[1770096359016,0.91265425,2330.1,2329.7,0.001]
[1770096360331,13.31177092,2330.1,2329.5,0.001]
[1770096360500,14.75034536,2330.0,2329.5,0.001]
[1770096360695,14.38480262,2329.9,2329.5,0.001]
[1770096360893,0.91265425,2329.8,2329.5,0.001]
[1770096361187,0.91265425,2329.7,2329.5,0.001]
[1770096361384,13.47214837,2329.9,2329.5,0.001]
[1770096361590,2.68796646,2329.8,2329.5,0.001]
[1770096361808,0.91155303,2329.7,2329.5,0.001]
[1770096362013,1.77641343,2329.8,2329.5,0.001]
[1770096362317,14.4491081,2329.7,2328.7,13.10741436]
[1770096362518,2.53357703,2329.6,2328.7,13.10741436]
[1770096362695,1.07323774,2329.4,2328.7,12.03385543]
[1770096363716,13.47235441,2329.4,2328.6,0.901]
[1770096363920,13.47235441,2329.4,2328.6,0.001]
[1770096364117,12.39911667,2329.2,2328.6,0.001]
[1770096364317,1.33080589,2329.1,2328.6,0.001]
[1770096364915,1.07336096,2329.2,2328.6,0.001]
[1770096366722,2.52255215,2329.6,2328.8,12.03385543]
[1770096366723,2.6957181,2329.6,2328.8,12.03385543]
[1770096367023,1.07316595,2329.6,2328.8,12.03385543]
[1770096367593,2.84948021,2329.8,2328.8,12.05100735]
[1770096367828,1.07306678,2329.8,2328.8,12.05100735]
[1770096369510,1.07406137,2330.0,2328.9,1.07346816]
[1770096369713,0.90707788,2329.9,2329.0,12.03385543]
[1770096370032,1.07406137,2330.0,2329.0,12.03385543]
[1770096370033,0.90707788,2329.8,2329.0,12.03385543]
[1770096370210,1.07406137,2330.0,2329.0,12.03385543]
[1770096370413,1.5575258,2329.9,2329.0,12.03385543]
[1770096370631,0.90705669,2329.8,2329.0,12.03385543]
[1770096370924,0.65046911,2329.9,2329.0,12.03385543]
[1770096371130,13.04958578,2329.9,2329.0,12.03385543]
[1770096371314,13.04958578,2329.9,2328.8,12.03385543]
[1770096371629,1.07309954,2329.7,2328.8,13.10736525]
[1770096374138,13.47221621,2329.7,2328.8,12.03385543]
[1770096374301,13.47221621,2329.7,2328.8,13.10736924]
[1770096374503,13.47221621,2329.7,2328.8,12.03385543]
[1770096374706,13.47221621,2329.7,2328.8,13.10735229]
[1770096374908,1.91769791,2329.6,2328.8,13.10835229]
[1770096375143,0.0011,2329.5,2328.8,13.10835229]
[1770096376041,0.0011,2329.5,2328.8,12.03485543]
[1770096376711,0.0011,2329.5,2328.8,13.10836515]
[1770096377038,0.0011,2329.5,2328.8,0.001]
[1770096377207,12.40021667,2329.5,2328.8,0.001]
[1770096377411,1.24002167,2329.4,2328.8,0.001]
[1770096377850,0.0011,2329.7,2328.9,12.03385543]
[1770096378026,0.0011,2329.7,2329.1,12.03385543]
[1770096378533,0.0011,2330.0,2329.2,12.03385543]
[1770096380538,0.0011,2330.0,2329.4,12.25898564]
[1770096382553,0.0011,2330.0,2329.1,13.3323584]
[1770096382714,1.2903592,2330.0,2329.2,1.33323584]
[1770096383042,1.2903592,2330.0,2329.2,13.59222148]
[1770096384542,2.36334752,2330.0,2329.2,13.59222148]
[1770096384739,2.36334752,2330.0,2329.2,14.66554819]
[1770096384939,1.2903592,2330.0,2329.2,14.66554819]
[1770096385142,0.0011,2330.0,2329.2,14.66554819]
[1770096385917,1.07406168,2330.0,2329.2,14.66554819]
[1770096386145,0.0011,2330.0,2329.2,14.66554819]
[1770096389142,0.0011,2330.0,2329.4,12.25998564]
[1770096389320,0.0011,2329.8,2329.5,1.10788221]
[1770096393850,0.0011,2329.8,2329.5,13.36686785]
[1770096394348,0.0011,2330.2,2329.8,12.25898564]
[1770096397261,0.0011,2330.2,2329.5,14.44004088]
[1770096397464,0.0011,2330.2,2329.6,1.33323584]
[1770096401270,11.81862271,2330.2,2329.4,0.001]
[1770096401447,12.72580119,2330.1,2329.4,0.001]
[1770096401646,11.81752271,2330.1,2329.4,0.001]
[1770096402067,11.81862271,2330.2,2329.4,12.25998564]
[1770096402254,2.19738602,2330.1,2329.4,12.25998564]
[1770096402570,0.0011,2330.0,2329.4,12.25998564]
[1770096402972,1.07406137,2330.0,2329.4,0.001]
[1770096403670,0.0011,2330.0,2329.4,12.25998564]
[1770096405646,0.0011,2330.0,2329.4,13.33320781]
[1770096405848,0.0011,2330.0,2329.6,12.25898564]
[1770096407060,0.0011,2330.0,2329.5,1.33332078]
[1770096407260,0.0011,2330.0,2329.4,12.25998564]
[1770096407658,0.0011,2330.0,2329.4,13.33320798]
[1770096408380,0.0011,2330.0,2329.4,12.25998564]
[1770096408887,0.0011,2330.0,2329.4,13.33322251]
[1770096409693,0.0011,2330.0,2329.4,12.25998564]
[1770096411172,0.0011,2330.0,2329.4,13.33321894]
[1770096411381,0.0011,2330.0,2329.5,14.42357604]
[1770096411883,0.0011,2330.0,2329.5,15.49676105]
[1770096412788,0.0011,2330.0,2329.5,14.42357604]
[1770096413299,0.0011,2330.0,2329.5,15.49674044]
[1770096414196,0.0011,2330.0,2329.6,12.66194115]
[1770096414371,0.0011,2330.0,2329.6,13.34042431]
[1770096416385,0.0011,2330.0,2329.6,14.4135605]
[1770096416790,0.0011,2330.2,2329.7,12.66094115]
[1770096417300,0.0011,2330.3,2329.7,12.66094115]
[1770096418177,0.0011,2330.3,2329.8,13.73399463]
[1770096418394,0.0011,2330.3,2329.9,1.37339946]
[1770096418583,0.0011,2330.3,2329.9,14.03434061]
[1770096420387,0.0011,2330.3,2329.9,15.1073459]
[1770096420771,0.0011,2330.3,2329.9,14.03434061]
[1770096421470,0.0011,2330.3,2329.9,15.10734269]
[1770096421674,0.0011,2330.3,2330.0,13.72865974]
[1770096422494,0.0011,2330.3,2330.0,14.80161507]
[1770096422693,0.0011,2330.7,2330.4,12.66094115]
[1770096423076,0.0011,2330.7,2330.0,2.14067392]
[1770096423271,0.0011,2330.7,2330.4,12.66094115]
[1770096423476,0.0011,2330.7,2330.5,1.37339946]
[1770096423678,0.0011,2330.7,2330.4,12.66094115]
[1770096424805,0.0011,2330.7,2330.4,13.73369487]
[1770096425411,0.0011,2330.7,2330.4,12.66094115]
[1770096425706,0.0011,2330.7,2330.0,13.73388001]
[1770096426081,0.0011,2330.7,2330.1,1.07291356]
[1770096426282,0.0011,2330.7,2330.1,2.96549471]
[1770096426483,0.0011,2330.5,2330.1,2.96549471]
[1770096426894,0.0011,2330.5,2330.1,1.89258115]
[1770096427210,0.0011,2330.5,2330.0,1.07294056]
[1770096429227,0.0011,2330.5,2330.0,13.73388171]
[1770096430529,0.0011,2330.5,2330.1,12.66094115]
[1770096430885,0.0011,2330.7,2330.1,1.07288772]
[1770096431393,0.0011,2330.7,2330.0,1.07295257]
[1770096431582,1.22144603,2330.7,2330.0,1.07295257]
[1770096433441,1.22144603,2330.7,2329.9,17.85296896]
[1770096433442,1.22144603,2330.7,2330.1,1.07291172]
[1770096433623,1.22144603,2330.7,2330.1,13.73385287]
[1770096433928,0.0011,2330.7,2330.1,13.73385287]
[1770096435591,12.20236029,2330.7,2329.9,14.63391329]
[1770096435992,0.0011,2330.7,2330.0,12.66094115]
[1770096437025,12.20236029,2330.7,2329.9,9.72160401]
[1770096437530,12.20236029,2330.7,2329.9,1.97297214]
[1770096437835,12.20236029,2330.7,2330.0,1.89260234]
[1770096438431,12.20236029,2330.7,2330.1,0.001]
[1770096438603,0.0011,2330.5,2330.1,0.001]
[1770096450534,12.61987505,2330.3,2329.9,0.001]
[1770096451105,12.62097505,2330.3,2329.9,0.001]
[1770096451324,1.26209751,2330.2,2329.9,0.001]
[1770096451531,1.26209751,2330.2,2330.0,0.001]
[1770096452138,0.0011,2330.3,2330.0,0.001]
[1770096457744,12.62097505,2330.3,2330.0,0.001]
[1770096458043,13.69383443,2330.3,2330.0,0.001]
[1770096458344,0.0011,2330.3,2330.0,0.001]
[1770096458723,1.07392387,2330.3,2330.0,0.001]
[1770096459021,1.36937989,2330.2,2330.0,0.001]
[1770096463131,0.0011,2330.3,2330.0,0.001]
[1770096464549,0.0011,2330.3,2330.2,0.001]
[1770096464730,0.0011,2330.1,2330.0,0.001]
[1770096466049,0.0011,2330.5,2330.1,12.54820116]
[1770096466637,0.0011,2330.5,2330.1,13.62109043]
[1770096467044,0.0011,2330.5,2330.1,12.54820116]
[1770096470557,0.0011,2330.7,2330.2,12.66174187]
[1770096470863,0.0011,2330.9,2330.3,11.94314172]
[1770096474146,0.0011,2330.9,2330.3,13.01595956]
[1770096474456,0.0011,2330.9,2330.5,11.94314172]
[1770096474756,0.3027215,2331.2,2330.7,11.94314172]
[1770096474941,1.5146978,2332.0,2331.2,11.94314172]
[1770096475252,0.90594018,2331.9,2331.3,0.71038076]
[1770096475418,11.83214419,2331.9,2331.2,11.94314172]
[1770096476058,7.74756909,2332.1,2331.2,11.94314172]
[1770096476353,0.90483561,2332.0,2331.2,11.94314172]
[1770096476554,2.04845489,2331.9,2331.2,11.94314172]
[1770096477137,3.12055326,2331.9,2331.2,11.94314172]
[1770096479961,0.0011,2331.7,2331.2,11.94314172]
[1770096481669,11.83324419,2331.7,2330.9,11.94314172]
[1770096481841,19.57971328,2331.4,2330.6,11.94314172]
[1770096482041,11.83214419,2331.4,2330.6,13.01582492]
[1770096482556,11.83214419,2331.3,2330.4,11.94314172]
[1770096482737,1.18332442,2331.6,2330.3,0.001]
[1770096482738,19.57971328,2331.0,2330.3,0.001]
[1770096482937,13.79011552,2330.9,2330.3,0.001]
[1770096483539,7.74756909,2331.2,2330.3,0.001]
[1770096483540,1.0724417,2331.2,2330.3,11.94414172]
[1770096483740,1.0723894,2331.3,2330.3,11.94414172]
[1770096483959,1.07231593,2331.5,2330.5,11.94314172]
[1770096484552,1.07231593,2331.5,2330.3,12.84314172]
[1770096484553,7.74756909,2331.3,2330.3,12.84314172]
[1770096485780,1.07240905,2331.2,2330.4,13.01591892]
[1770096485962,1.07240905,2331.2,2330.5,1.82071112]
[1770096487784,1.07240905,2331.2,2330.5,2.8934228]
[1770096488084,8.81996428,2331.3,2330.5,13.0158534]
[1770096488785,1.07239519,2331.3,2330.5,13.0158534]
[1770096491878,1.07239519,2331.3,2330.3,0.001]
[1770096491879,11.83214419,2331.0,2330.3,0.001]
[1770096492078,11.83214419,2331.0,2330.5,0.001]
[1770096492777,11.83214419,2331.0,2330.3,0.001]
[1770096492966,13.79011552,2330.9,2330.3,0.001]
[1770096493662,1.95797133,2330.9,2330.3,13.0169643]
[1770096493867,1.97149371,2331.1,2330.3,13.0169643]
[1770096494289,1.07249371,2331.1,2330.3,13.0169643]
[1770096494493,1.07244343,2331.2,2330.3,13.0169643]
[1770096494692,4.28933184,2331.4,2330.3,13.0169643]
[1770096496087,16.12147603,2331.4,2330.3,13.0169643]
[1770096496392,2.49413622,2331.3,2330.4,11.94314172]
[1770096497678,4.28933184,2331.4,2330.4,11.94314172]
[1770096497872,1.07231706,2331.5,2330.5,1.07273117]
[1770096497873,12.90446125,2331.5,2330.5,1.07273117]
[1770096498079,0.90503958,2331.4,2330.5,13.01587289]
[1770096498279,12.90446125,2331.5,2330.5,13.01587289]
[1770096498489,0.90509605,2331.4,2330.5,13.01587289]
[1770096498786,1.9283066,2331.4,2330.7,11.94314172]
[1770096498977,1.07231706,2331.5,2330.7,11.94314172]
[1770096499587,12.90446125,2331.5,2330.7,11.94314172]
[1770096499768,12.73651727,2331.4,2330.5,11.94314172]
[1770096499969,1.07236305,2331.3,2330.5,13.01586977]
[1770096500167,1.07236305,2331.3,2330.5,11.94314172]
[1770096500368,1.71939595,2331.2,2330.5,11.94314172]
[1770096501299,14.49907596,2331.2,2330.3,12.11032519]
[1770096501504,14.49907596,2331.2,2330.3,13.18314213]
[1770096502015,1.07245506,2331.1,2330.3,13.18314213]
[1770096502873,12.77968001,2331.0,2330.3,12.11032519]
[1770096503096,2.15997042,2330.9,2330.3,1.0738181]
[1770096503286,8.82002415,2331.1,2330.3,13.18314329]
[1770096503583,8.82002415,2331.1,2330.3,13.18314324]
[1770096504271,21.59970416,2331.1,2330.3,13.18314465]
[1770096505106,21.59970416,2331.1,2330.5,0.001]
[1770096505605,8.82002415,2331.1,2330.5,0.001]
[1770096505806,3.83333821,2331.1,2330.5,12.11032519]
[1770096506667,1.07245506,2331.1,2330.5,12.11032519]
[1770096506877,1.07244067,2331.2,2330.5,13.18305484]
[1770096507176,4.28952433,2331.3,2330.5,13.18305484]
[1770096507177,1.07238937,2331.3,2330.5,13.18305484]
[1770096507397,0.905506,2331.2,2330.5,13.18305484]
[1770096507604,1.07238937,2331.3,2330.5,13.18305484]
[1770096507896,1.07238937,2331.3,2330.7,12.10932519]
[1770096508398,12.77968001,2331.3,2330.5,12.11032519]
[1770096508603,12.77968001,2331.3,2330.5,0.001]
[1770096508799,21.43128517,2331.2,2330.5,0.001]
[1770096509100,20.52574507,2331.2,2330.5,0.001]
[1770096509300,2.95813314,2331.1,2330.5,0.001]
[1770096509505,2.05257451,2331.1,2330.5,0.001]
[1770096510493,1.07239768,2331.3,2330.5,12.11032519]
[1770096510817,0.90590948,2331.2,2330.5,12.11032519]
[1770096510980,0.90590948,2331.1,2330.5,12.11032519]
[1770096511177,1.07239768,2331.3,2330.5,12.11032519]
[1770096511377,0.90588408,2331.2,2330.5,12.11032519]
[1770096511579,0.90588408,2331.1,2330.5,13.32145771]
[1770096511792,1.07239768,2331.3,2330.5,13.32145771]
[1770096512085,0.90655264,2331.2,2330.5,13.32145771]
[1770096512280,0.90655264,2331.2,2330.5,0.001]
[1770096512281,0.90655264,2331.1,2330.5,0.001]
[1770096512480,1.07250107,2331.0,2330.5,0.001]
[1770096512783,1.07247967,2331.1,2330.5,0.001]
[1770096512984,1.07247967,2331.1,2330.5,12.11032519]
[1770096513185,1.60869892,2331.1,2330.5,12.11032519]
[1770096515397,0.90655744,2331.0,2330.5,0.001]
[1770096515706,13.68621688,2330.9,2330.3,0.001]
[1770096515912,0.90653687,2330.8,2330.3,0.001]
[1770096516107,1.36862169,2330.7,2330.3,0.001]
[1770096517208,2.4412764,2330.7,2330.3,0.001]
[1770096517716,15.22095641,2330.7,2329.6,0.01815192]
[1770096518016,12.77968001,2330.5,2329.6,0.001]
[1770096518202,12.77968001,2330.3,2329.6,0.001]
[1770096518408,0.90614128,2330.2,2329.6,0.001]
[1770096518592,1.36858213,2330.4,2329.6,0.001]
[1770096518799,0.90497003,2330.3,2329.6,0.001]
[1770096518983,0.90497003,2330.2,2329.6,0.001]
[1770096519189,1.07282324,2330.3,2329.6,0.001]
[1770096519391,2.85551589,2330.2,2329.6,0.001]
[1770096519697,1.95123783,2330.2,2329.6,0.001]
[1770096519912,14.73091784,2330.2,2329.4,0.001]
[1770096520096,0.90428811,2330.1,2329.4,0.001]
[1770096520298,1.5635206,2330.0,2329.4,0.001]
[1770096521215,1.95123783,2330.2,2329.4,12.11032519]
[1770096521413,1.07291532,2330.1,2329.4,12.11032519]
[1770096521988,1.07931532,2330.1,2329.4,12.11032519]
[1770096523700,1.07931532,2330.1,2329.4,13.18355551]
[1770096523701,0.0064,2330.1,2329.4,13.18355551]
[1770096524519,1.07288824,2330.2,2329.4,13.17715551]
[1770096524696,1.07288824,2330.2,2329.6,12.10932519]
[1770096525390,1.07282324,2330.3,2329.6,13.18246389]
[1770096525587,1.07282324,2330.3,2329.6,12.10932519]
[1770096526322,1.07282324,2330.3,2329.5,14.92959346]
[1770096530722,1.07282324,2330.3,2329.7,0.001]
[1770096530900,0.67325888,2330.2,2329.7,0.001]
[1770096531723,2.44139537,2330.4,2329.8,12.54057365]
[1770096531894,4.29076454,2330.6,2329.8,13.61362395]
[1770096532090,4.29076454,2330.6,2329.8,12.54057365]
[1770096534203,12.90946083,2330.5,2329.7,0.001]
[1770096534402,4.29076454,2330.6,2329.7,13.61466565]
[1770096534627,1.83753105,2330.5,2329.8,12.54057365]
[1770096536206,1.0727772,2330.4,2329.8,12.54057365]
[1770096539737,1.07262481,2330.8,2329.8,13.61361707]
[1770096539905,1.07262481,2330.8,2329.9,12.54057365]
[1770096540432,4.29129373,2330.9,2330.1,12.54057365]
[1770096540433,0.0011,2330.9,2330.1,12.54057365]
[1770096540630,0.0011,2331.1,2330.3,12.54057365]
[1770096541605,1.07356116,2331.1,2330.3,12.54057365]
[1770096541816,13.98302199,2331.1,2330.3,12.54057365]
[1770096542018,13.98302199,2331.1,2330.0,12.54057365]
[1770096542019,7.75085764,2330.6,2330.0,12.54057365]
[1770096542332,7.75085764,2330.6,2329.7,1.07407078]
[1770096542333,0.77508576,2330.5,2329.8,12.54057365]
[1770096542632,1.0727772,2330.4,2329.7,0.001]
[1770096544111,13.98223803,2330.4,2329.7,0.001]
[1770096550740,12.90946083,2330.2,2329.7,0.001]
[1770096552445,1.07291532,2330.1,2329.7,0.001]
[1770096553951,1.07290106,2330.2,2329.7,0.001]
[1770096554248,2.90027991,2330.2,2329.7,0.001]
[1770096556014,2.90027991,2330.2,2329.7,12.54157365]
[1770096556411,1.07290106,2330.2,2329.7,12.54157365]
[1770096557350,1.07290106,2330.2,2329.9,0.001]
[1770096557519,4.2914266,2330.3,2329.9,0.001]
[1770096559449,1.07282324,2330.3,2329.9,0.001]
[1770096560539,1.84785803,2330.5,2329.9,12.77597903]
[1770096560739,0.90543957,2330.4,2329.9,12.77597903]
[1770096560917,1.84785803,2330.5,2329.9,12.77597903]
[1770096561122,0.90545626,2330.4,2329.9,12.77597903]
[1770096561342,1.84785803,2330.5,2329.9,12.77597903]
[1770096561545,0.9055052,2330.4,2329.9,12.77597903]
[1770096561750,1.84785803,2330.5,2329.9,12.77597903]
[1770096561950,1.51938455,2330.4,2329.9,12.77597903]
[1770096562152,0.61387762,2330.4,2329.9,12.77597903]
[1770096563761,1.68666329,2330.4,2329.9,12.77597903]
[1770096563924,1.68665861,2330.4,2329.9,12.77597903]
[1770096564630,0.61387762,2330.4,2329.9,12.77597903]
[1770096564943,13.88969809,2330.7,2329.9,12.77597903]
[1770096564944,1.07374951,2330.7,2329.9,13.84895639]
[1770096565364,0.0011,2330.7,2330.0,13.00854933]
[1770096565660,0.0011,2330.9,2330.3,12.77497903]
[1770096565822,0.0011,2330.9,2330.5,12.77497903]
[1770096566023,0.0011,2330.9,2330.7,12.77497903]
[1770096570739,0.0011,2331.2,2330.7,12.77497903]
[1770096570965,0.0011,2331.2,2330.7,14.74661224]
[1770096571369,0.0011,2331.2,2330.7,13.67397903]
[1770096571538,0.0011,2331.2,2330.7,0.899]
[1770096572039,0.0011,2331.2,2330.7,13.67397903]
[1770096572358,0.0011,2331.2,2330.7,15.80295489]
[1770096572557,0.0011,2331.2,2330.7,15.80295519]
[1770096574657,0.0011,2331.2,2330.7,14.73032146]
[1770096577259,0.0011,2331.2,2330.7,1.95534243]
[1770096577563,12.76184794,2331.2,2330.7,0.899]
[1770096577764,0.0011,2331.2,2330.7,0.899]
[1770096577963,0.0011,2331.2,2330.6,13.84766138]
[1770096583162,0.0011,2331.2,2330.8,0.001]
[1770096583549,0.0011,2331.0,2330.8,0.001]
[1770096596780,0.0011,2331.2,2330.8,0.001]
[1770096597092,0.90811458,2331.1,2330.8,0.001]
[1770096597391,2.11397311,2331.2,2330.8,0.001]
[1770096597392,2.11397311,2331.2,2331.0,0.001]
[1770096597596,0.90812545,2331.1,2331.0,0.001]
[1770096598397,0.90922545,2331.1,2331.0,0.001]
[1770096600805,12.20419344,2330.8,2329.9,0.001]
[1770096601009,7.74483831,2330.2,2329.8,0.001]
[1770096601300,7.74483831,2330.4,2329.8,13.18103622]
[1770096601712,12.20419344,2330.5,2329.8,13.18103622]
[1770096601713,14.56904867,2330.7,2330.0,1.07292009]
[1770096601868,0.90596378,2330.6,2330.0,1.07293768]
[1770096602073,12.20419344,2330.7,2330.1,1.74719319]
[1770096602304,7.74483831,2330.8,2330.0,1.07292082]
[1770096602509,0.90580328,2330.7,2330.0,1.07292082]
[1770096602711,1.07263912,2330.7,2330.0,1.07292082]
[1770096603308,1.07263912,2330.7,2330.0,13.17990797]
[1770096604803,21.02165977,2330.8,2330.0,13.17990797]
[1770096605002,0.90590695,2330.7,2330.1,13.85417866]
[1770096605190,8.81746633,2330.8,2330.1,13.85417866]
[1770096605375,0.90590738,2330.7,2330.1,13.85417866]
[1770096605577,8.81746633,2330.8,2330.1,13.85417866]
[1770096605777,0.90574366,2330.7,2330.1,13.85417866]
[1770096605976,8.81746633,2330.8,2330.2,12.80091369]
[1770096606179,0.90574492,2330.7,2330.2,12.10698715]
[1770096606487,13.27682146,2330.8,2330.0,14.07890797]
[1770096606702,0.90560373,2330.7,2330.0,14.07890797]
[1770096606899,13.27682146,2330.8,2330.0,14.07890797]
[1770096607080,0.90561111,2330.7,2330.0,14.07890797]
[1770096607405,12.20419344,2330.7,2330.0,0.899]
[1770096608104,0.0011,2331.1,2330.2,13.17985314]
[1770096611307,0.0011,2331.1,2330.5,12.10698715]
[1770096611483,0.0011,2331.1,2330.4,0.001]
[1770096611689,0.0011,2331.1,2330.5,12.10698715]